[Event "*** Titled Tuesday Blitz"]
[Site "Chess.com"]
[Date "2020.04.14"]
[Round "4"]
[White "Galileo22"]
[Black "SaguriGuerra"]
[Result "0-1"]
[WhiteElo "2330"]
[BlackElo "2531"]
[TimeControl "180+1"]
[EndTime "10:40:00 PDT"]
[Termination "SaguriGuerra won on time"]

1. d4 {[%clk 0:02:59.9]} 1... d6 {[%clk 0:02:59.8]} 2. Nf3 {[%clk 0:02:59.4]}
2... Nf6 {[%clk 0:02:59.7]} 3. Bg5 {[%clk 0:02:58.8]} 3... Nbd7 {[%clk
0:02:57.9]} 4. Nbd2 {[%clk 0:02:58.8]} 4... g6 {[%clk 0:02:55.8]} 5. e4 {[%clk
0:02:58.8]} 5... Bg7 {[%clk 0:02:56.5]} 6. c3 {[%clk 0:02:58.9]} 6... O-O {[%clk
0:02:56.9]} 7. Bd3 {[%clk 0:02:59.5]} 7... e5 {[%clk 0:02:48.3]} 8. O-O {[%clk
0:02:58.6]} 8... c6 {[%clk 0:02:47.7]} 9. a4 {[%clk 0:02:57.3]} 9... a5 {[%clk
0:02:46.2]} 10. Re1 {[%clk 0:02:55.7]} 10... Qc7 {[%clk 0:02:46.4]} 11. Nc4
{[%clk 0:02:53]} 11... h6 {[%clk 0:02:31.3]} 12. Bh4 {[%clk 0:02:48.7]} 12...
Nh5 {[%clk 0:02:31.4]} 13. Bg3 {[%clk 0:02:47.9]} 13... Nxg3 {[%clk 0:02:27.3]}
14. hxg3 {[%clk 0:02:47.4]} 14... Re8 {[%clk 0:02:21.8]} 15. Qc2 {[%clk
0:02:44.3]} 15... Nf8 {[%clk 0:02:20.1]} 16. Ne3 {[%clk 0:02:42.1]} 16... Ne6
{[%clk 0:02:18.6]} 17. dxe5 {[%clk 0:02:40.3]} 17... dxe5 {[%clk 0:02:19]} 18.
Bc4 {[%clk 0:02:36.8]} 18... Nc5 {[%clk 0:02:18.6]} 19. Nh4 {[%clk 0:02:34.8]}
19... Kh7 {[%clk 0:02:11.9]} 20. Qb1 {[%clk 0:02:05.6]} 20... Bf6 {[%clk
0:01:57.9]} 21. Nf3 {[%clk 0:02:04.4]} 21... Kg7 {[%clk 0:01:56.2]} 22. Qc2
{[%clk 0:01:44.4]} 22... h5 {[%clk 0:01:55.6]} 23. Rec1 {[%clk 0:01:39.6]} 23...
Bd7 {[%clk 0:01:50.1]} 24. b4 {[%clk 0:01:29.2]} 24... Ne6 {[%clk 0:01:25.3]}
25. Qb3 {[%clk 0:01:18.5]} 25... Rad8 {[%clk 0:01:15.7]} 26. Rd1 {[%clk
0:01:11.4]} 26... Bc8 {[%clk 0:01:13.5]} 27. b5 {[%clk 0:01:02.7]} 27... Nc5
{[%clk 0:01:12.5]} 28. Qc2 {[%clk 0:01:01.4]} 28... Qb6 {[%clk 0:00:58.8]} 29.
bxc6 {[%clk 0:00:50]} 29... bxc6 {[%clk 0:00:58.6]} 30. Rab1 {[%clk 0:00:50.2]}
30... Qc7 {[%clk 0:00:58.4]} 31. Ba2 {[%clk 0:00:37.5]} 31... Ba6 {[%clk
0:00:55.8]} 32. Bc4 {[%clk 0:00:37]} 32... Bc8 {[%clk 0:00:50.1]} 33. Ba2 {[%clk
0:00:36.4]} 33... Be7 {[%clk 0:00:42.1]} 34. Nc4 {[%clk 0:00:31.5]} 34... f6
{[%clk 0:00:38.7]} 35. Ne3 {[%clk 0:00:27.8]} 35... Ne6 {[%clk 0:00:38]} 36. Nh4
{[%clk 0:00:24.2]} 36... Bc5 {[%clk 0:00:36.3]} 37. Qe2 {[%clk 0:00:19.9]} 37...
Qa7 {[%clk 0:00:36.1]} 38. Nef5+ {[%clk 0:00:13.4]} 38... gxf5 {[%clk
0:00:35.7]} 39. Nxf5+ {[%clk 0:00:13.2]} 39... Kg6 {[%clk 0:00:35.1]} 40. Nh4+
{[%clk 0:00:11.6]} 40... Kg5 {[%clk 0:00:26.3]} 41. Qf3 {[%clk 0:00:09.4]} 41...
Ng7 {[%clk 0:00:20.5]} 42. Kh2 {[%clk 0:00:05.3]} 42... Bg4 {[%clk 0:00:20.4]}
0-1

[Event "*** Titled Tuesday Blitz"]
[Site "Chess.com"]
[Date "2020.04.14"]
[Round "4"]
[White "GM4life"]
[Black "jaskol95"]
[Result "0-1"]
[WhiteElo "2175"]
[BlackElo "2404"]
[TimeControl "180+1"]
[EndTime "10:40:00 PDT"]
[Termination "jaskol95 won by checkmate"]

1. e4 {[%clk 0:03:00.9]} 1... e6 {[%clk 0:02:55.6]} 2. d4 {[%clk 0:03:00.3]}
2... d5 {[%clk 0:02:55.2]} 3. Nc3 {[%clk 0:03:00.7]} 3... Bb4 {[%clk 0:02:53]}
4. e5 {[%clk 0:02:58.1]} 4... Ne7 {[%clk 0:02:52.5]} 5. a3 {[%clk 0:02:58.4]}
5... Bxc3+ {[%clk 0:02:51]} 6. bxc3 {[%clk 0:02:59.3]} 6... c5 {[%clk
0:02:51.6]} 7. Qg4 {[%clk 0:02:59.3]} 7... Qc7 {[%clk 0:02:48.6]} 8. Qxg7 {[%clk
0:02:59]} 8... Rg8 {[%clk 0:02:48.5]} 9. Qxh7 {[%clk 0:02:59.5]} 9... cxd4
{[%clk 0:02:49.1]} 10. Qd3 {[%clk 0:02:59.4]} 10... Nbc6 {[%clk 0:02:49.1]} 11.
cxd4 {[%clk 0:02:50.9]} 11... Nxe5 {[%clk 0:02:42]} 12. Qb3 {[%clk 0:02:34.9]}
12... Nc4 {[%clk 0:02:27.8]} 13. Nf3 {[%clk 0:02:30.4]} 13... Bd7 {[%clk
0:02:24.1]} 14. Bg5 {[%clk 0:02:07.7]} 14... Nf5 {[%clk 0:02:15]} 15. h4 {[%clk
0:02:05.3]} 15... Rc8 {[%clk 0:00:53]} 16. Bd3 {[%clk 0:02:04.3]} 16... Nxd4
{[%clk 0:00:40]} 17. Nxd4 {[%clk 0:01:06.7]} 17... Qe5+ {[%clk 0:00:39.9]} 18.
Be3 {[%clk 0:01:05.9]} 18... Nxe3 {[%clk 0:00:39.3]} 19. fxe3 {[%clk 0:01:05.8]}
19... Qxe3+ {[%clk 0:00:24]} 20. Ne2 {[%clk 0:01:05.5]} 20... Rxg2 {[%clk
0:00:24.1]} 21. h5 {[%clk 0:00:34.7]} 21... Ke7 {[%clk 0:00:10]} 22. Qb4+ {[%clk
0:00:33.5]} 22... Kf6 {[%clk 0:00:07.9]} 23. Qf4+ {[%clk 0:00:31.7]} 23... Qxf4
{[%clk 0:00:07.9]} 24. Nxf4 {[%clk 0:00:32.6]} 24... Rg4 {[%clk 0:00:06.9]} 25.
Rf1 {[%clk 0:00:25.4]} 25... Kg5 {[%clk 0:00:06.8]} 26. Ne2 {[%clk 0:00:21.8]}
26... f5 {[%clk 0:00:06]} 27. Rh1 {[%clk 0:00:21.8]} 27... Rh8 {[%clk 0:00:04]}
28. Kd2 {[%clk 0:00:19.7]} 28... Rxh5 {[%clk 0:00:04.3]} 29. Rxh5+ {[%clk
0:00:19.1]} 29... Kxh5 {[%clk 0:00:05.2]} 30. Rb1 {[%clk 0:00:19.5]} 30... Kg5
{[%clk 0:00:05.7]} 31. Ke3 {[%clk 0:00:19.7]} 31... Bc6 {[%clk 0:00:05.9]} 32.
Nd4 {[%clk 0:00:19.6]} 32... e5 {[%clk 0:00:05.6]} 33. Nf3+ {[%clk 0:00:18.3]}
33... Kf6 {[%clk 0:00:05.5]} 34. Nd2 {[%clk 0:00:16.2]} 34... d4+ {[%clk
0:00:05.7]} 35. Ke2 {[%clk 0:00:16.1]} 35... Rg2+ {[%clk 0:00:06.3]} 36. Kd1
{[%clk 0:00:15.6]} 36... e4 {[%clk 0:00:06.9]} 37. Bf1 {[%clk 0:00:15.1]} 37...
Rf2 {[%clk 0:00:06.7]} 38. Ke1 {[%clk 0:00:14.7]} 38... e3 {[%clk 0:00:06.9]}
39. Nc4 {[%clk 0:00:12.7]} 39... f4 {[%clk 0:00:07.1]} 40. Nb2 {[%clk
0:00:09.1]} 40... Rxc2 {[%clk 0:00:07.1]} 41. Nd3 {[%clk 0:00:09]} 41... f3
{[%clk 0:00:07.5]} 42. Rd1 {[%clk 0:00:07.4]} 42... f2+ {[%clk 0:00:07.7]} 43.
Nxf2 {[%clk 0:00:06.5]} 43... exf2# {[%clk 0:00:08.6]} 0-1

[Event "*** Titled Tuesday Blitz"]
[Site "Chess.com"]
[Date "2020.04.14"]
[Round "4"]
[White "powermove"]
[Black "Nafania1"]
[Result "0-1"]
[WhiteElo "1505"]
[BlackElo "2374"]
[TimeControl "180+1"]
[EndTime "10:40:00 PDT"]
[Termination "Nafania1 won by resignation"]

1. Nf3 {[%clk 0:03:00.9]} 1... Nf6 {[%clk 0:02:59.3]} 2. c4 {[%clk 0:03:00.8]}
2... g6 {[%clk 0:02:58.9]} 3. Nc3 {[%clk 0:03:00.7]} 3... Bg7 {[%clk 0:02:59.1]}
4. e4 {[%clk 0:03:00.7]} 4... d6 {[%clk 0:02:59.5]} 5. d4 {[%clk 0:03:00.7]}
5... O-O {[%clk 0:02:59.6]} 6. Be2 {[%clk 0:03:00.8]} 6... c5 {[%clk 0:02:59.8]}
7. O-O {[%clk 0:02:59.6]} 7... Nc6 {[%clk 0:02:57.6]} 8. h3 {[%clk 0:02:54.6]}
8... cxd4 {[%clk 0:02:50.4]} 9. Nxd4 {[%clk 0:02:53.9]} 9... Bd7 {[%clk
0:02:50.4]} 10. Be3 {[%clk 0:02:52.7]} 10... a6 {[%clk 0:02:44.8]} 11. Qd2
{[%clk 0:02:42.8]} 11... Nxd4 {[%clk 0:02:42.1]} 12. Bxd4 {[%clk 0:02:42.2]}
12... Bc6 {[%clk 0:02:42.3]} 13. f3 {[%clk 0:02:38.6]} 13... a5 {[%clk 0:02:36]}
14. b3 {[%clk 0:02:36]} 14... Nd7 {[%clk 0:02:35.3]} 15. Be3 {[%clk 0:02:25]}
15... Nc5 {[%clk 0:02:33.3]} 16. Rad1 {[%clk 0:02:24.4]} 16... Qb6 {[%clk
0:02:30.8]} 17. Nd5 {[%clk 0:02:21.4]} 17... Bxd5 {[%clk 0:02:28.6]} 18. exd5
{[%clk 0:02:21.3]} 18... Qb4 {[%clk 0:02:12.7]} 19. Rfe1 {[%clk 0:02:08.6]}
19... Bc3 {[%clk 0:02:07.5]} 20. Qc1 {[%clk 0:02:03.3]} 20... a4 {[%clk
0:01:59]} 21. Rf1 {[%clk 0:01:34.6]} 21... axb3 {[%clk 0:01:57.3]} 22. axb3
{[%clk 0:01:32.5]} 22... Ra2 {[%clk 0:01:43.7]} 23. Rf2 {[%clk 0:01:22.9]} 23...
Nxb3 {[%clk 0:01:37.5]} 24. Qb1 {[%clk 0:01:21.8]} 24... Rb2 {[%clk 0:01:37.6]}
25. Qe4 {[%clk 0:01:16.5]} 25... Re8 {[%clk 0:01:29.2]} 26. h4 {[%clk
0:01:12.3]} 26... Nc5 {[%clk 0:01:28.4]} 27. Qg4 {[%clk 0:01:10.4]} 27... h5
{[%clk 0:01:14]} 28. Qg5 {[%clk 0:01:02.7]} 28... Bf6 {[%clk 0:01:13]} 29. Qf4
{[%clk 0:01:01.3]} 29... Qb3 {[%clk 0:00:59]} 30. Bxc5 {[%clk 0:00:36.3]} 30...
dxc5 {[%clk 0:00:57.7]} 31. Rd3 {[%clk 0:00:31.8]} 31... Qb6 {[%clk 0:00:44.5]}
32. d6 {[%clk 0:00:30.1]} 32... Bd4 {[%clk 0:00:33.8]} 33. d7 {[%clk 0:00:27.8]}
33... Rd8 {[%clk 0:00:29.9]} 34. Rxd4 {[%clk 0:00:25.5]} 34... cxd4 {[%clk
0:00:29.4]} 35. c5 {[%clk 0:00:22.2]} 35... Qxc5 {[%clk 0:00:29.1]} 36. Bd3
{[%clk 0:00:20.6]} 36... Rxf2 {[%clk 0:00:27]} 37. Kxf2 {[%clk 0:00:20.1]} 37...
e5 {[%clk 0:00:26.8]} 38. Qg5 {[%clk 0:00:17.5]} 38... Rxd7 {[%clk 0:00:26.2]}
39. Bxg6 {[%clk 0:00:16.7]} 39... fxg6 {[%clk 0:00:24.8]} 40. Qxg6+ {[%clk
0:00:16.8]} 40... Kf8 {[%clk 0:00:24.1]} 41. Qf6+ {[%clk 0:00:13.9]} 41... Ke8
{[%clk 0:00:24.1]} 42. Qh8+ {[%clk 0:00:12.2]} 42... Ke7 {[%clk 0:00:21.1]} 43.
Qg7+ {[%clk 0:00:10.5]} 43... Kd6 {[%clk 0:00:21.1]} 44. Qf6+ {[%clk 0:00:10.4]}
44... Kc7 {[%clk 0:00:21.3]} 0-1

[Event "*** Titled Tuesday Blitz"]
[Site "Chess.com"]
[Date "2020.04.14"]
[Round "4"]
[White "Harut-1998"]
[Black "Pittiplatsh"]
[Result "1-0"]
[WhiteElo "2579"]
[BlackElo "2340"]
[TimeControl "180+1"]
[EndTime "10:40:02 PDT"]
[Termination "Harut-1998 won on time"]

1. d4 {[%clk 0:03:00.9]} 1... Nf6 {[%clk 0:02:59.3]} 2. c4 {[%clk 0:02:58.1]}
2... g6 {[%clk 0:02:59.3]} 3. Nc3 {[%clk 0:02:56.5]} 3... d5 {[%clk 0:02:59.5]}
4. Bf4 {[%clk 0:02:52.4]} 4... Bg7 {[%clk 0:02:58.2]} 5. e3 {[%clk 0:02:52.3]}
5... O-O {[%clk 0:02:56.9]} 6. Rc1 {[%clk 0:02:52.3]} 6... Be6 {[%clk
0:02:54.3]} 7. Nf3 {[%clk 0:02:49.9]} 7... dxc4 {[%clk 0:02:53.5]} 8. Ng5 {[%clk
0:02:48.6]} 8... Bd5 {[%clk 0:02:53.7]} 9. e4 {[%clk 0:02:48.1]} 9... h6 {[%clk
0:02:54.3]} 10. exd5 {[%clk 0:02:48]} 10... hxg5 {[%clk 0:02:54.4]} 11. Bxg5
{[%clk 0:02:47.2]} 11... b5 {[%clk 0:02:48.2]} 12. Be2 {[%clk 0:02:15.6]} 12...
Nxd5 {[%clk 0:02:31.8]} 13. Nxb5 {[%clk 0:01:57.5]} 13... c6 {[%clk 0:02:12.2]}
14. Nc3 {[%clk 0:01:55.6]} 14... Qa5 {[%clk 0:02:04.7]} 15. Qd2 {[%clk
0:01:46.8]} 15... Nd7 {[%clk 0:01:53.7]} 16. O-O {[%clk 0:01:37.8]} 16... N7b6
{[%clk 0:01:49.6]} 17. Nxd5 {[%clk 0:01:28.8]} 17... Qxd5 {[%clk 0:01:47.9]} 18.
Bxe7 {[%clk 0:01:28.3]} 18... Rfe8 {[%clk 0:01:34.3]} 19. Bc5 {[%clk 0:01:26.7]}
19... Rad8 {[%clk 0:01:30.8]} 20. Rfd1 {[%clk 0:01:16.3]} 20... Qf5 {[%clk
0:00:55.7]} 21. Bxc4 {[%clk 0:01:05.6]} 21... Nxc4 {[%clk 0:00:32.3]} 22. Rxc4
{[%clk 0:01:06.5]} 22... Re4 {[%clk 0:00:32.4]} 23. f3 {[%clk 0:00:54.6]} 23...
Re6 {[%clk 0:00:29.3]} 24. Bxa7 {[%clk 0:00:43.3]} 24... Rde8 {[%clk 0:00:28.4]}
25. Rc5 {[%clk 0:00:32.5]} 25... Qf6 {[%clk 0:00:22.5]} 26. Re5 {[%clk
0:00:32.3]} 26... Rxe5 {[%clk 0:00:17.2]} 27. dxe5 {[%clk 0:00:33.2]} 27... Qxe5
{[%clk 0:00:17.5]} 28. Bd4 {[%clk 0:00:25.6]} 28... Qe6 {[%clk 0:00:13.4]} 29.
Bxg7 {[%clk 0:00:24]} 29... Kxg7 {[%clk 0:00:14]} 30. b3 {[%clk 0:00:15.9]}
30... Kg8 {[%clk 0:00:14]} 31. h3 {[%clk 0:00:10.6]} 31... c5 {[%clk 0:00:14]}
32. Rc1 {[%clk 0:00:10.2]} 32... Qe5 {[%clk 0:00:11.3]} 33. Kh1 {[%clk 0:00:10]}
33... Rc8 {[%clk 0:00:08.8]} 34. Qc2 {[%clk 0:00:09.7]} 34... Qe3 {[%clk
0:00:07.9]} 35. Qc3 {[%clk 0:00:09.8]} 35... Qe2 {[%clk 0:00:07.5]} 36. b4
{[%clk 0:00:09.6]} 36... c4 {[%clk 0:00:05.9]} 37. a4 {[%clk 0:00:09.7]} 37...
Rd8 {[%clk 0:00:06]} 38. Qxc4 {[%clk 0:00:09]} 38... Rd1+ {[%clk 0:00:05.7]} 39.
Kh2 {[%clk 0:00:09.3]} 39... Qe5+ {[%clk 0:00:02.4]} 40. f4 {[%clk 0:00:09.3]}
40... Rxc1 {[%clk 0:00:02.8]} 41. Qxc1 {[%clk 0:00:08.6]} 1-0

[Event "*** Titled Tuesday Blitz"]
[Site "Chess.com"]
[Date "2020.04.14"]
[Round "4"]
[White "Perimir"]
[Black "konradrutkowski"]
[Result "1-0"]
[WhiteElo "2434"]
[BlackElo "2217"]
[TimeControl "180+1"]
[EndTime "10:40:02 PDT"]
[Termination "Perimir won on time"]

1. e4 {[%clk 0:03:00.8]} 1... e5 {[%clk 0:02:59.3]} 2. Nc3 {[%clk 0:03:00.8]}
2... Nf6 {[%clk 0:02:58.3]} 3. Bc4 {[%clk 0:03:01.2]} 3... Nc6 {[%clk 0:02:54]}
4. d3 {[%clk 0:03:01.2]} 4... Bc5 {[%clk 0:02:40.7]} 5. f4 {[%clk 0:03:01]} 5...
d6 {[%clk 0:02:35.1]} 6. Nf3 {[%clk 0:03:01.4]} 6... Bg4 {[%clk 0:02:26.7]} 7.
Na4 {[%clk 0:03:02]} 7... Bb6 {[%clk 0:02:15.3]} 8. Nxb6 {[%clk 0:03:02.3]} 8...
axb6 {[%clk 0:02:16.2]} 9. O-O {[%clk 0:03:01.6]} 9... h6 {[%clk 0:02:07.5]} 10.
a3 {[%clk 0:02:47.6]} 10... O-O {[%clk 0:01:56.1]} 11. h3 {[%clk 0:02:42.5]}
11... Bxf3 {[%clk 0:01:52]} 12. Qxf3 {[%clk 0:02:43.4]} 12... exf4 {[%clk
0:01:47.8]} 13. Qxf4 {[%clk 0:02:28.5]} 13... d5 {[%clk 0:01:39.1]} 14. exd5
{[%clk 0:02:21.6]} 14... Nxd5 {[%clk 0:01:38]} 15. Qg3 {[%clk 0:02:16.1]} 15...
Nd4 {[%clk 0:01:31.5]} 16. Rf2 {[%clk 0:02:02.3]} 16... Kh7 {[%clk 0:01:06.5]}
17. Qe5 {[%clk 0:01:43.3]} 17... Nf6 {[%clk 0:00:59.4]} 18. c3 {[%clk
0:01:16.2]} 18... Nc6 {[%clk 0:00:54.6]} 19. Qf5+ {[%clk 0:01:16.7]} 19... Kh8
{[%clk 0:00:48.7]} 20. Bxh6 {[%clk 0:01:07.1]} 20... gxh6 {[%clk 0:00:27.9]} 21.
Qxf6+ {[%clk 0:01:06.1]} 21... Qxf6 {[%clk 0:00:28.5]} 22. Rxf6 {[%clk 0:01:07]}
22... Kg7 {[%clk 0:00:26.8]} 23. Raf1 {[%clk 0:01:06.8]} 23... Ne5 {[%clk
0:00:26.8]} 24. Bb3 {[%clk 0:01:04.1]} 24... Nxd3 {[%clk 0:00:17.1]} 25. Rxf7+
{[%clk 0:01:03.8]} 25... Rxf7 {[%clk 0:00:17.4]} 26. Rxf7+ {[%clk 0:01:03.1]}
26... Kg6 {[%clk 0:00:17.8]} 27. Rxc7 {[%clk 0:00:54.2]} 27... Nxb2 {[%clk
0:00:17.8]} 28. Rxb7 {[%clk 0:00:53.8]} 28... Rxa3 {[%clk 0:00:17.8]} 29. Rxb6+
{[%clk 0:00:54]} 29... Kg5 {[%clk 0:00:13.2]} 30. c4 {[%clk 0:00:50.5]} 30...
Nd3 {[%clk 0:00:10.7]} 31. Rb5+ {[%clk 0:00:44.6]} 31... Kf4 {[%clk 0:00:10.1]}
32. Kh2 {[%clk 0:00:41.7]} 32... h5 {[%clk 0:00:06.8]} 33. c5 {[%clk 0:00:27.2]}
33... h4 {[%clk 0:00:04.8]} 34. c6 {[%clk 0:00:19.5]} 34... Ra1 {[%clk
0:00:04.9]} 35. Bc2 {[%clk 0:00:17.1]} 35... Nf2 {[%clk 0:00:04.6]} 36. Rf5+
{[%clk 0:00:17.2]} 36... Ke3 {[%clk 0:00:03.9]} 37. Rxf2 {[%clk 0:00:17.1]}
37... Kxf2 {[%clk 0:00:03.7]} 38. c7 {[%clk 0:00:17.5]} 1-0

[Event "*** Titled Tuesday Blitz"]
[Site "Chess.com"]
[Date "2020.04.14"]
[Round "4"]
[White "Salem-AR"]
[Black "Cayse"]
[Result "1-0"]
[WhiteElo "2902"]
[BlackElo "2702"]
[TimeControl "180+1"]
[EndTime "10:40:04 PDT"]
[Termination "Salem-AR won on time"]

1. d4 {[%clk 0:03:00.9]} 1... Nf6 {[%clk 0:02:58.8]} 2. c4 {[%clk 0:03:01.2]}
2... e6 {[%clk 0:02:58.6]} 3. Nf3 {[%clk 0:03:01.9]} 3... d5 {[%clk 0:02:58.1]}
4. Nc3 {[%clk 0:03:02.7]} 4... Nbd7 {[%clk 0:02:58]} 5. Bg5 {[%clk 0:03:03.3]}
5... h6 {[%clk 0:02:53.2]} 6. Bh4 {[%clk 0:03:02.8]} 6... Be7 {[%clk 0:02:53.3]}
7. cxd5 {[%clk 0:03:02.8]} 7... Nxd5 {[%clk 0:02:48.5]} 8. Bxe7 {[%clk
0:03:02.8]} 8... Qxe7 {[%clk 0:02:48.7]} 9. Rc1 {[%clk 0:02:59.5]} 9... Nxc3
{[%clk 0:02:38.2]} 10. Rxc3 {[%clk 0:02:59.1]} 10... c6 {[%clk 0:02:36]} 11. g3
{[%clk 0:02:56.7]} 11... O-O {[%clk 0:02:35.4]} 12. Bg2 {[%clk 0:02:57.4]} 12...
e5 {[%clk 0:02:34]} 13. O-O {[%clk 0:02:54.5]} 13... Rd8 {[%clk 0:02:27.3]} 14.
e3 {[%clk 0:02:18]} 14... exd4 {[%clk 0:02:08.2]} 15. Nxd4 {[%clk 0:02:18.9]}
15... Nf6 {[%clk 0:02:07.3]} 16. Qb1 {[%clk 0:02:06.8]} 16... Bg4 {[%clk
0:01:59.5]} 17. b4 {[%clk 0:01:58.6]} 17... Rac8 {[%clk 0:01:46.1]} 18. Rfc1
{[%clk 0:01:52.9]} 18... a6 {[%clk 0:01:26.8]} 19. a4 {[%clk 0:01:45.8]} 19...
Qd7 {[%clk 0:01:26.3]} 20. Rc5 {[%clk 0:01:21.5]} 20... g6 {[%clk 0:01:12.7]}
21. Qb2 {[%clk 0:01:17.4]} 21... Qd6 {[%clk 0:00:58]} 22. h3 {[%clk 0:01:16.6]}
22... Bd7 {[%clk 0:00:56.9]} 23. Kh2 {[%clk 0:01:11.1]} 23... Be8 {[%clk
0:00:54.1]} 24. R5c2 {[%clk 0:00:55.2]} 24... Bd7 {[%clk 0:00:50.7]} 25. Kg1
{[%clk 0:00:53.9]} 25... Ne8 {[%clk 0:00:48.2]} 26. Rd2 {[%clk 0:00:49.6]} 26...
Qe7 {[%clk 0:00:43.2]} 27. Rcd1 {[%clk 0:00:48.7]} 27... h5 {[%clk 0:00:42.8]}
28. a5 {[%clk 0:00:43.4]} 28... Nf6 {[%clk 0:00:40.9]} 29. Nb3 {[%clk
0:00:36.2]} 29... Be6 {[%clk 0:00:33.4]} 30. Nc5 {[%clk 0:00:36.4]} 30... Rxd2
{[%clk 0:00:27.2]} 31. Rxd2 {[%clk 0:00:35.9]} 31... Bd5 {[%clk 0:00:16.2]} 32.
e4 {[%clk 0:00:27.6]} 32... Bc4 {[%clk 0:00:16.3]} 33. Qd4 {[%clk 0:00:25.2]}
33... Bb5 {[%clk 0:00:13.9]} 34. Nxb7 {[%clk 0:00:17.7]} 34... Nxe4 {[%clk
0:00:09.1]} 35. Bxe4 {[%clk 0:00:18.6]} 35... Qxb7 {[%clk 0:00:09]} 36. Qf6
{[%clk 0:00:19.4]} 36... Re8 {[%clk 0:00:08.1]} 37. Bxg6 {[%clk 0:00:10.9]}
37... fxg6 {[%clk 0:00:06.2]} 38. Qxg6+ {[%clk 0:00:11.8]} 38... Kf8 {[%clk
0:00:06.5]} 39. Rd6 {[%clk 0:00:12.6]} 39... Re1+ {[%clk 0:00:02.6]} 40. Kh2
{[%clk 0:00:12.1]} 1-0

[Event "*** Titled Tuesday Blitz"]
[Site "Chess.com"]
[Date "2020.04.14"]
[Round "4"]
[White "igorkovalenko"]
[Black "mbojan"]
[Result "1-0"]
[WhiteElo "2899"]
[BlackElo "2588"]
[TimeControl "180+1"]
[EndTime "10:40:04 PDT"]
[Termination "igorkovalenko won by resignation"]

1. d4 {[%clk 0:03:00.9]} 1... Nf6 {[%clk 0:02:58.9]} 2. Nf3 {[%clk 0:03:00.3]}
2... g6 {[%clk 0:02:57.4]} 3. Bf4 {[%clk 0:02:59.8]} 3... Bg7 {[%clk 0:02:57]}
4. e3 {[%clk 0:03:00.4]} 4... O-O {[%clk 0:02:56.7]} 5. h3 {[%clk 0:03:00.6]}
5... d6 {[%clk 0:02:57]} 6. Bh2 {[%clk 0:03:00.1]} 6... Nbd7 {[%clk 0:02:56.7]}
7. c3 {[%clk 0:03:00.7]} 7... b6 {[%clk 0:02:55.8]} 8. a4 {[%clk 0:03:01.1]}
8... a6 {[%clk 0:02:54.3]} 9. Bc4 {[%clk 0:02:58.8]} 9... Bb7 {[%clk 0:02:53.2]}
10. O-O {[%clk 0:02:59.4]} 10... Ne4 {[%clk 0:02:50]} 11. Re1 {[%clk 0:02:53.1]}
11... Ndf6 {[%clk 0:02:46.7]} 12. Nfd2 {[%clk 0:02:42.6]} 12... Nxd2 {[%clk
0:02:46.1]} 13. Qxd2 {[%clk 0:02:42.5]} 13... c5 {[%clk 0:02:41.9]} 14. Na3
{[%clk 0:02:35.6]} 14... Qd7 {[%clk 0:02:20.7]} 15. Bb3 {[%clk 0:02:31.2]} 15...
Bc6 {[%clk 0:02:16.2]} 16. Nc4 {[%clk 0:02:29.9]} 16... Qb7 {[%clk 0:02:13.7]}
17. f3 {[%clk 0:02:28.1]} 17... Nd7 {[%clk 0:02:09.5]} 18. e4 {[%clk 0:02:12.6]}
18... Qc8 {[%clk 0:01:38.3]} 19. e5 {[%clk 0:01:49.1]} 19... d5 {[%clk
0:01:16.6]} 20. Ne3 {[%clk 0:01:48.4]} 20... e6 {[%clk 0:00:57.8]} 21. f4 {[%clk
0:01:48.4]} 21... b5 {[%clk 0:00:51.1]} 22. a5 {[%clk 0:01:48.5]} 22... b4
{[%clk 0:00:46.4]} 23. Bg3 {[%clk 0:01:32.4]} 23... bxc3 {[%clk 0:00:41.6]} 24.
bxc3 {[%clk 0:01:32.4]} 24... Rb8 {[%clk 0:00:38.9]} 25. Bc2 {[%clk 0:01:31.2]}
25... Bb5 {[%clk 0:00:27.5]} 26. Bh4 {[%clk 0:01:30.2]} 26... cxd4 {[%clk
0:00:27]} 27. cxd4 {[%clk 0:01:30.1]} 27... f5 {[%clk 0:00:22.4]} 28. Be7 {[%clk
0:01:25.2]} 28... Rf7 {[%clk 0:00:21.1]} 29. Bd6 {[%clk 0:01:25.7]} 29... Rb7
{[%clk 0:00:20.7]} 30. Rec1 {[%clk 0:01:25.5]} 30... Qe8 {[%clk 0:00:20.4]} 31.
Bd3 {[%clk 0:01:18.1]} 31... Bf8 {[%clk 0:00:20.7]} 32. Bxb5 {[%clk 0:01:13.3]}
32... Rxb5 {[%clk 0:00:21.6]} 33. Bxf8 {[%clk 0:01:12.8]} 33... Nxf8 {[%clk
0:00:20.8]} 34. Rc2 {[%clk 0:01:09.5]} 34... Rfb7 {[%clk 0:00:20.8]} 35. Rac1
{[%clk 0:01:09.1]} 35... Rb1 {[%clk 0:00:20.4]} 36. Kh2 {[%clk 0:01:08.6]} 36...
Rxc1 {[%clk 0:00:20.2]} 37. Rxc1 {[%clk 0:01:08.4]} 37... Qd8 {[%clk 0:00:17.7]}
38. Rc6 {[%clk 0:01:07.7]} 38... Qa8 {[%clk 0:00:14.6]} 39. Qc3 {[%clk
0:01:06.3]} 39... Rb8 {[%clk 0:00:14.4]} 40. Nc2 {[%clk 0:00:55]} 40... Rb5
{[%clk 0:00:13.1]} 41. Ne1 {[%clk 0:00:53.9]} 41... Qb7 {[%clk 0:00:11]} 42. Rc7
{[%clk 0:00:53.9]} 42... Qb8 {[%clk 0:00:07.8]} 43. Rc8 {[%clk 0:00:54]} 43...
Qb7 {[%clk 0:00:07.6]} 44. Nf3 {[%clk 0:00:54]} 44... Rb3 {[%clk 0:00:06.3]} 45.
Qc5 {[%clk 0:00:53.7]} 45... Qg7 {[%clk 0:00:05.6]} 46. Ng5 {[%clk 0:00:51]}
46... Rb5 {[%clk 0:00:05.5]} 47. Nxe6 {[%clk 0:00:42.5]} 47... Rxc5 {[%clk
0:00:05.3]} 48. dxc5 {[%clk 0:00:43.4]} 48... Qe7 {[%clk 0:00:05.2]} 49. Rxf8+
{[%clk 0:00:43.1]} 49... Qxf8 {[%clk 0:00:04.7]} 50. Nxf8 {[%clk 0:00:44]} 50...
Kxf8 {[%clk 0:00:05.6]} 51. c6 {[%clk 0:00:43.2]} 51... Ke7 {[%clk 0:00:05.5]}
1-0